[Event "Israel Team Ch Under 18"]
[Site "Jerusalem"]
[Date "2017.08.15"]
[Round "7"]
[White "Vazana, Yochay"]
[Black "Weintraub, Amit"]
[Result "0-1"]
[ECO "B01"]
[WhiteElo "1921"]
[BlackElo "1801"]
[Annotator "NA RC"]
[PlyCount "72"]
[EventDate "2017.??.??"]
[EventType "swiss"]
[EventCountry "ISR"]
[SourceTitle "playchess.com"]
[Source "ChessBase"]
[SourceQuality "1"]
[TimeControl "40/5400+30:1800+30"]

1. e4 {[%emt 0:40:14]} d5 {[%emt 0:40:47]} 2. exd5 {[%emt 0:00:25]} Nf6 {[%emt 0:00:25]} 3. c4 {[%emt 0:00:49]} c6 {[%emt 0:00:27]} 4. d4 {[%emt 0:01:07]} cxd5 {[%emt 0:00:28]} 5. cxd5 {[%emt 0:00:27]} Nxd5 {[%emt 0:00:30]} 6. Bc4 {[%emt 0:00:56]} Nc6 {[%emt 0:01:30]} 7. Nc3 {[%emt 0:04:24]} Nb6 {[%emt 0:03:11]} 8. Bb5 {[%emt 0:01:32]} Bd7 {[%emt 0:00:29]} 9. Nf3 {[%emt 0:01:23]} a6 {[%emt 0:01:20] B13: Caro-Kann: Exchange Variation and Panov-Botvinnik Attack} 10. Bxc6 {[%emt 0:02:31]} Bxc6 {[%emt 0:00:31]} 11. O-O {[%emt 0:01:22]} g6 $146 {[%emt 0:03:03]} ({Predecessor:} 11... e6 12. Ne5 Qc7 13. Bf4 Bd6 14. Rc1 f6 15. Qh5+ g6 16. Nxg6 Qf7 17. Bxd6 {1-0 (32) Koth,S (2230)-Prohaszka,G Balatonlelle 2001}) 12. Ne5 {[%emt 0:05:07]} Bd5 {[%emt 0:00:40]} 13. Nxd5 {[%emt 0:04:23]} Qxd5 {[%emt 0:00:37]} 14. Be3 {[%emt 0:02:38]} Bg7 {[%emt 0:00:50]} 15. Re1 {[%emt 0:02:28]} O-O {[%emt 0:00:38]} 16. Qf3 {[%emt 0:02:45]} Qxf3 {[%emt 0:03:43]} 17. Nxf3 {[%emt 0:00:47]} Nd5 {[%emt 0:01:03]} 18. Bd2 $1 {[%emt 0:01:22]} Rfd8 {[%emt 0:00:44]} 19. Rac1 {[%emt 0:01:28]} e6 {[%emt 0:04:15]} 20. g3 {[%emt 0:02:11]} Rdc8 {[%emt 0:03:03]} 21. b3 {[%emt 0:02:16]} Bf8 {[%emt 0:01:40]} 22. Bg5 {[%emt 0:15:58]} Nb4 {[%emt 0:02:38]} 23. Rc4 {[%emt 0:02:08]} (23. a4 $1 $15) 23... b5 {[%emt 0:01:43]} (23... Nxa2 $17 24. h4 Nc3) 24. Rxc8 {[%emt 0:01:23]} Rxc8 {[%emt 0:00:24]} 25. Rc1 {[%emt 0:00:35]} (25. Re2 $17) 25... Rxc1+ {[%emt 0:01:30]} 26. Bxc1 {[%emt 0:00:23]} Nxa2 {[%emt 0:00:30]} 27. Be3 {[%emt 0:00:41]} Nb4 {[%emt 0:02:19]} 28. Bd2 {[%emt 0:00:53]} Nc6 {[%emt 0:00:28]} 29. Bc3 $19 {[%emt 0:00:35]} a5 {[%emt 0:02:43]} 30. Kf1 {[%emt 0:00:28]} a4 {[%emt 0:00:26]} 31. bxa4 {[%emt 0:00:36]} bxa4 {[%emt 0:00:25]} 32. Ke1 {[%emt 0:00:32]} Bb4 {[%emt 0:01:09]} 33. Bxb4 {[%emt 0:00:31]} Nxb4 {[%emt 0:00:23]} 34. Kd1 {[%emt 0:00:35]} Nd3 {[%emt 0:01:53]} 35. Ke2 {[%emt 0:00:47]} a3 {[%emt 0:00:36]} 36. Nd2 {[%emt 0:00:46]} Nc1+ {[%emt 0:00:29]} 0-1

[Event "Israel Team Ch Under 18"]
[Site "Jerusalem"]
[Date "2017.08.15"]
[Round "7"]
[White "Stolyarsky, Yegor"]
[Black "Kadria, Shay"]
[Result "0-1"]
[ECO "C01"]
[WhiteElo "1914"]
[BlackElo "1784"]
[Annotator "NA RC"]
[PlyCount "156"]
[EventDate "2017.??.??"]
[EventType "swiss"]
[EventCountry "ISR"]
[SourceTitle "playchess.com"]
[Source "ChessBase"]
[SourceQuality "1"]
[TimeControl "40/5400+30:1800+30"]

1. e4 {[%emt 0:40:14]} e6 {[%emt 0:41:10]} 2. d4 {[%emt 0:00:21]} d5 {[%emt 0:00:27]} 3. exd5 {[%emt 0:00:22]} exd5 {[%emt 0:00:27]} 4. Bd3 {[%emt 0:00:24]} Bd6 {[%emt 0:00:40]} 5. Nf3 {[%emt 0:00:25]} h6 {[%emt 0:00:34]} 6. h3 {[%emt 0:02:31] C01: French: Exchange Variation} Qf6 {[%emt 0:00:30]} 7. O-O {[%emt 0:00:40]} Ne7 {[%emt 0:00:20]} 8. c3 {[%emt 0:01:32]} Nbc6 {[%emt 0:00:41]} 9. b4 $146 {[%emt 0:01:05]} ({Predecessor:} 9. Re1 O-O 10. Nbd2 Bf5 11. Nf1 Bxd3 12. Qxd3 Nf5 13. Ne3 Nxe3 14. Bxe3 {½-½ (31) Asadli,V (2397)-Hojjatova,A (2300) Nakhchivan 2016}) 9... Be6 {[%emt 0:02:16]} 10. Nbd2 {[%emt 0:01:11]} g5 {[%emt 0:01:11]} 11. Re1 {[%emt 0:02:34]} (11. b5 $5 {[%cal Rb5c6]} Nb8 12. c4 $14) 11... h5 {[%emt 0:06:18]} 12. b5 {[%emt 0:04:30]} Na5 {[%emt 0:01:38]} 13. Nxg5 {[%emt 0:02:39]} Qxg5 {[%emt 0:01:07]} 14. Nb3 {[%emt 0:00:33]} Qh4 {[%emt 0:03:29]} 15. Rxe6 {[%emt 0:02:55]} Nxb3 $2 {[%emt 0:02:07] [#]} (15... fxe6 $19 16. Nxa5 O-O-O) 16. Rxe7+ $1 {[%emt 0:00:46]} Qxe7 {[%emt 0:01:45]} 17. axb3 {[%emt 0:00:39]} c6 {[%emt 0:03:33]} 18. Bd2 {[%emt 0:04:25]} Qf6 {[%emt 0:03:36]} 19. bxc6 {[%emt 0:07:46]} bxc6 {[%emt 0:00:26]} 20. Qe1+ {[%emt 0:02:37]} Kf8 {[%emt 0:01:44]} 21. Qe3 {[%emt 0:01:55]} Kg7 {[%emt 0:01:28]} 22. Qg5+ {[%emt 0:04:11]} Qxg5 {[%emt 0:00:34]} 23. Bxg5 {[%emt 0:00:43]} Rhc8 {[%emt 0:05:27]} 24. Ba6 {[%emt 0:06:38]} Rc7 {[%emt 0:00:32]} 25. b4 {[%emt 0:01:48]} Re8 {[%emt 0:05:37]} 26. Kf1 {[%emt 0:02:08]} f6 {[%emt 0:03:09]} 27. Bd2 {[%emt 0:03:51]} Rce7 {[%emt 0:02:28]} 28. Bd3 {[%emt 0:01:40]} Rf8 {[%emt 0:01:46]} 29. Ba6 {[%emt 0:02:30]} Rff7 {[%emt 0:01:12]} (29... h4 $11) 30. Ra2 f5 {[%emt 0:00:45]} (30... h4 $11) 31. Ra1 {[%emt 0:01:43]} f4 32. f3 {[%emt 0:00:33]} Re8 {[%emt 0:01:10]} 33. Bd3 $11 {[%emt 0:00:29]} Rc8 {[%emt 0:02:25]} 34. Ba6 {[%emt 0:00:25]} Rcc7 35. Bd3 {[%emt 0:00:25]} h4 {[%emt 0:02:03]} 36. Re1 {[%emt 0:00:21]} Rfe7 {[%emt 0:00:52]} 37. Ra1 Re6 {[%emt 0:01:13]} 38. Bf5 {[%emt 0:00:58]} Re8 {[%emt 0:00:39]} 39. Ra6 {[%emt 0:00:47]} Kf6 {[%emt 0:00:28]} 40. Bd3 Rg8 {[%emt 0:31:45]} 41. b5 {[%emt 0:30:55]} Rgc8 {[%emt 0:00:53]} 42. bxc6 {[%emt 0:00:25]} Rb8 {[%emt 0:00:31]} 43. Ke2 {[%emt 0:00:39]} Rb6 {[%emt 0:00:40]} 44. Rxb6 {[%emt 0:00:26]} axb6 45. Bb5 {[%emt 0:00:32]} Ke6 {[%emt 0:01:00]} 46. c4 {[%emt 0:00:30]} Ra7 {[%emt 0:00:57]} 47. c5 {[%emt 0:00:34]} bxc5 {[%emt 0:00:30]} 48. dxc5 {[%emt 0:00:21]} Be5 {[%emt 0:00:21]} 49. Bd3 {[%emt 0:00:41]} Ra2 {[%emt 0:00:27]} 50. Ke1 {[%emt 0:00:30]} Ra1+ {[%emt 0:00:48]} 51. Ke2 {[%emt 0:00:30]} Ra2 {[%emt 0:00:24]} 52. Kd1 {[%emt 0:00:27]} Ra1+ {[%emt 0:00:45]} 53. Kc2 {[%emt 0:00:32]} Bc7 {[%emt 0:01:26]} 54. Bh7 {[%emt 0:00:26]} Rg1 {[%emt 0:00:25]} 55. Bg8+ {[%emt 0:00:21]} Ke5 {[%emt 0:00:29]} 56. Kd3 {[%emt 0:00:36]} d4 {[%emt 0:00:29]} 57. Bxf4+ {[%emt 0:00:39]} Kxf4 {[%emt 0:00:26]} 58. Kxd4 {[%emt 0:00:22]} Rd1+ {[%emt 0:00:26]} 59. Kc4 {[%emt 0:00:24]} Kg3 {[%emt 0:00:30]} 60. Be6 {[%emt 0:00:31]} Kxg2 {[%emt 0:00:25]} 61. Bg4 {[%emt 0:00:22]} Kg3 {[%emt 0:00:57]} 62. Kb5 {[%emt 0:00:34]} Ra1 {[%emt 0:00:36]} 63. Kc4 {[%emt 0:00:25]} Kf4 {[%emt 0:00:33]} 64. Kd5 {[%emt 0:00:29]} Rc1 {[%emt 0:00:39]} 65. Kd4 {[%emt 0:00:34]} Rd1+ {[%emt 0:00:31]} 66. Kc4 {[%emt 0:00:23]} Rd8 {[%emt 0:00:31]} 67. Kb5 {[%emt 0:00:30]} Ra8 {[%emt 0:00:24]} 68. Kb4 {[%emt 0:00:31]} Ke5 {[%emt 0:00:25]} 69. Kc4 {[%emt 0:00:24]} Ra1 {[%emt 0:00:35]} 70. Bd7 {[%emt 0:00:46]} Rc1+ {[%emt 0:00:21]} 71. Kb5 {[%emt 0:00:21]} Kd4 {[%emt 0:00:22]} 72. Ka6 {[%emt 0:00:29]} Rxc5 {[%emt 0:00:22]} 73. Kb7 {[%emt 0:00:23]} Bf4 {[%emt 0:00:29]} 74. Kb6 {[%emt 0:00:27]} Rc1 {[%emt 0:00:24]} 75. Bg4 {[%emt 0:00:30]} Rb1+ {[%emt 0:00:25]} 76. Ka6 {[%emt 0:00:26]} Kc5 {[%emt 0:00:31]} 77. Bd7 {[%emt 0:00:21]} Rb3 {[%emt 0:00:41]} 78. Bg4 {[%emt 0:01:08]} Kxc6 {[%emt 0:00:23]} 0-1

[Event "Israel Team Ch Under 18"]
[Site "Jerusalem"]
[Date "2017.08.15"]
[Round "7"]
[White "Gitzman, Michael"]
[Black "Lukin, Elisha"]
[Result "1/2-1/2"]
[ECO "A45"]
[WhiteElo "1912"]
[BlackElo "2006"]
[Annotator "NA RC"]
[PlyCount "137"]
[EventDate "2017.??.??"]
[EventType "swiss"]
[EventCountry "ISR"]
[SourceTitle "playchess.com"]
[Source "ChessBase"]
[SourceQuality "1"]
[TimeControl "40/5400+30:1800+30"]

1. d4 {[%emt 0:40:12]} Nf6 {[%emt 0:40:48]} 2. Nc3 {[%emt 0:00:25]} e6 {[%emt 0:00:56]} 3. Bf4 {[%emt 0:00:39]} b6 {[%emt 0:00:31]} 4. f3 {[%emt 0:01:37]} Bb7 {[%emt 0:01:45]} 5. e4 {[%emt 0:00:54]} d6 {[%emt 0:01:22]} 6. Bd3 {[%emt 0:02:40]} Nbd7 {[%emt 0:00:36]} 7. Qd2 {[%emt 0:03:27]} Be7 {[%emt 0:00:43]} 8. Nge2 {[%emt 0:02:12]} a6 {[%emt 0:01:26]} 9. Ng3 {[%emt 0:04:09]} c5 {[%emt 0:02:28]} 10. d5 {[%emt 0:03:42]} exd5 {[%emt 0:06:30]} 11. Nxd5 {[%emt 0:02:28]} Nxd5 {[%emt 0:00:33]} 12. exd5 {[%emt 0:00:26]} Ne5 {[%emt 0:05:11]} 13. Bxe5 {[%emt 0:06:38]} dxe5 {[%emt 0:00:27]} 14. c4 {[%emt 0:02:16]} Bh4 {[%emt 0:01:43]} 15. O-O {[%emt 0:01:07]} Bxg3 {[%emt 0:00:57]} 16. hxg3 {[%emt 0:00:22]} Qd6 {[%emt 0:03:16]} 17. Qg5 {[%emt 0:01:54]} O-O {[%emt 0:04:04]} 18. Rae1 {[%emt 0:01:42]} Rae8 {[%emt 0:01:37]} 19. Kf2 {[%emt 0:02:07]} h6 {[%emt 0:02:52]} 20. Qh5 {[%emt 0:03:21]} b5 {[%emt 0:07:15]} 21. b3 {[%emt 0:01:18]} ({Don't blunder} 21. cxb5 $2 Qxd5 22. Re3 c4 $19) 21... bxc4 {[%emt 0:02:12]} 22. bxc4 {[%emt 0:00:24]} Bc8 {[%emt 0:02:44]} 23. g4 {[%emt 0:01:49]} Qf6 {[%emt 0:01:01]} 24. Be4 {[%emt 0:09:58]} Bd7 {[%emt 0:02:31]} 25. Rh1 {[%emt 0:00:39]} Qf4 {[%emt 0:01:49]} 26. Re2 f5 {[%emt 0:06:35]} 27. g3 {[%emt 0:06:48]} Qg5 {[%emt 0:00:22]} 28. Bxf5 {[%emt 0:00:28]} Bxf5 {[%emt 0:00:26]} 29. gxf5 {[%emt 0:00:28]} Qxf5 {[%emt 0:00:27]} 30. Qxf5 {[%emt 0:00:31]} Rxf5 {[%emt 0:00:20]} 31. Ke3 {[%emt 0:00:32]} Rb8 {[%emt 0:00:31]} 32. Ke4 {[%emt 0:00:27]} Rg5 {[%emt 0:00:23]} 33. g4 {[%emt 0:00:31]} Rf8 {[%emt 0:00:34]} 34. d6 {[%emt 0:00:35]} Rf4+ {[%emt 0:00:58]} 35. Kd5 {[%emt 0:00:22]} Rd4+ {[%emt 0:01:04]} 36. Kxc5 {[%emt 0:00:23]} Rg6 {[%emt 0:00:26]} 37. Rxe5 {[%emt 0:00:31]} Rdxd6 {[%emt 0:00:31]} 38. Rd5 {[%emt 0:00:25]} Rc6+ {[%emt 0:00:21]} 39. Kd4 {[%emt 0:00:21]} Rgf6 {[%emt 0:00:29]} 40. Rf5 {[%emt 0:00:32]} Rfd6+ {[%emt 0:30:33]} 41. Kc3 {[%emt 0:30:32]} Re6 {[%emt 0:00:24]} 42. c5 {[%emt 0:00:41]} g6 {[%emt 0:01:43]} 43. Rd5 {[%emt 0:00:21]} Re3+ {[%emt 0:01:07]} 44. Kc4 {[%emt 0:00:29]} Rxf3 {[%emt 0:00:25]} 45. Rxh6 {[%emt 0:00:26]} Kg7 46. Rh2 {[%emt 0:00:40]} Ra3 {[%emt 0:01:21]} (46... Kf7 {was worth a try.} 47. Rd8 Ke7) 47. g5 {[%emt 0:00:45]} Ra4+ $18 {[%emt 0:01:03]} 48. Kb3 {[%emt 0:00:27]} Rg4 {[%emt 0:00:38]} 49. Rhd2 {[%emt 0:00:33]} Rg3+ {[%emt 0:00:36]} 50. Kb4 {[%emt 0:00:30]} Rg4+ {[%emt 0:00:32]} 51. R2d4 {[%emt 0:00:25]} Rg2 {[%emt 0:00:23]} 52. Rd7+ {[%emt 0:00:30]} Kf8 {[%emt 0:00:21]} 53. Rd8+ {[%emt 0:00:25]} Ke7 {[%emt 0:00:22]} 54. R4d7+ {[%emt 0:00:24]} Ke6 {[%emt 0:00:33]} 55. Rd6+ {[%emt 0:00:21]} Rxd6 {[%emt 0:00:50]} 56. Rxd6+ {[%emt 0:00:22]} Ke7 {[%emt 0:00:31]} 57. Rxg6 {[%emt 0:00:30]} Rxa2 {[%emt 0:00:21]} 58. c6 {[%emt 0:00:38]} Kd8 {[%emt 0:00:21]} 59. Rf6 {[%emt 0:00:49]} Kc7 {[%emt 0:00:34]} 60. g6 {[%emt 0:00:27]} Rg2 {[%emt 0:00:22]} 61. Ka5 {[%emt 0:00:42]} Ra2+ {[%emt 0:00:22]} 62. Kb4 {[%emt 0:00:21]} Rg2 {[%emt 0:00:22]} 63. Kc5 {[%emt 0:00:35]} Rg5+ {[%emt 0:00:21]} 64. Kd4 {[%emt 0:00:24]} a5 {[%emt 0:00:35]} 65. Ke4 {[%emt 0:00:32]} a4 {[%emt 0:00:21]} 66. Kf4 {[%emt 0:00:38]} Rg1 {[%emt 0:00:23]} 67. Ke5 {[%emt 0:00:31]} a3 {[%emt 0:00:27]} 68. Rf7+ {[%emt 0:00:29]} Kxc6 {[%emt 0:00:21]} 69. Ra7 {[%emt 0:00:31]} 1/2-1/2

[Event "Israel Team Ch Under 18"]
[Site "Jerusalem"]
[Date "2017.08.15"]
[Round "7"]
[White "Hayohamo, Raz"]
[Black "Avineri, Paz"]
[Result "1/2-1/2"]
[ECO "B32"]
[WhiteElo "1872"]
[BlackElo "1807"]
[Annotator "NA RC"]
[PlyCount "68"]
[EventDate "2017.??.??"]
[EventType "swiss"]
[EventCountry "ISR"]
[SourceTitle "playchess.com"]
[Source "ChessBase"]
[SourceQuality "1"]
[TimeControl "40/5400+30:1800+30"]

1. e4 {[%emt 0:40:13]} c5 {[%emt 0:40:46]} 2. Nf3 {[%emt 0:00:25]} Nc6 {[%emt 0:00:26]} 3. d4 {[%emt 0:00:27]} cxd4 {[%emt 0:00:23]} 4. Nxd4 {[%emt 0:00:32]} e5 {[%emt 0:00:34]} 5. Nb5 {[%emt 0:00:26]} d6 {[%emt 0:00:24]} 6. c4 {[%emt 0:00:28]} f5 {[%emt 0:01:56] B32: Sicilian: Löwenthal and Kalashnikov Variations} (6... Be7 7. N1c3 a6 8. Na3 Be6 9. Be2 Rc8 10. O-O Nf6 11. Be3 O-O 12. Qd2 Nd7 13. Rac1 Nc5 14. f3 Nd4 15. Bxd4 exd4 16. Qxd4 Qb6 17. Rc2 Bf6 18. Qe3 Qb4 19. Qd2 Na4 20. Nd5 {½-½ (37) Anand,V (2779)-Caruana,F (2823) Saint Louis 2016}) 7. exf5 {[%emt 0:01:04]} Bxf5 {[%emt 0:01:21]} 8. Bd3 {[%emt 0:00:30]} Bxd3 {[%emt 0:01:33]} 9. Qxd3 {[%emt 0:00:23]} Nf6 {[%emt 0:01:55]} 10. O-O {[%emt 0:00:34]} a6 {[%emt 0:00:53]} 11. N5a3 {[%emt 0:01:09]} (11. N5c3 $16) 11... Be7 {[%emt 0:01:10]} 12. Nc3 {[%emt 0:00:35]} O-O {[%emt 0:02:34]} 13. Nc2 {[%emt 0:00:59]} Kh8 {[%emt 0:07:13]} 14. Ne3 $146 {[%emt 0:02:45]} ({Find the theoretical novelty and annotate with similar games:} 14. Bg5) 14... Nd4 {[%emt 0:01:00]} 15. Ned5 {[%emt 0:00:47]} Nxd5 {[%emt 0:00:38]} 16. Nxd5 {[%emt 0:00:32]} Bg5 {[%emt 0:01:15]} 17. f4 {[%emt 0:02:12]} Bf6 {[%emt 0:01:52]} 18. Be3 {[%emt 0:00:42]} Nc6 {[%emt 0:13:19]} 19. Rad1 {[%emt 0:02:58]} exf4 {[%emt 0:03:07]} 20. Rxf4 {[%emt 0:03:29]} Bxb2 {[%emt 0:02:28]} 21. Rb1 {[%emt 0:01:51]} Rxf4 {[%emt 0:02:01]} 22. Nxf4 {[%emt 0:01:01]} Qf6 {[%emt 0:03:42]} 23. Nd5 {[%emt 0:01:55]} Qe5 {[%emt 0:01:32]} 24. Bf4 {[%emt 0:00:39]} Qd4+ {[%emt 0:01:14]} 25. Qxd4 {[%emt 0:00:33]} Bxd4+ {[%emt 0:00:22]} 26. Kh1 {[%emt 0:00:33]} Be5 {[%emt 0:02:00]} ({Black should play} 26... Na5 $15) 27. Rxb7 {[%emt 0:00:32]} Bxf4 {[%emt 0:01:34]} 28. Nxf4 {[%emt 0:01:28]} Rb8 $11 {[%emt 0:00:51]} 29. Rxb8+ {[%emt 0:00:31]} Nxb8 {[%emt 0:00:52]} 30. Kg1 {[%emt 0:01:14]} Nd7 {[%emt 0:03:21]} 31. Nd3 {[%emt 0:00:40]} Kg8 {[%emt 0:01:47]} 32. Kf2 Kf7 33. Ke3 Ke6 34. Kd4 Ne5 1/2-1/2

[Event "Israel Team Ch Under 18"]
[Site "Jerusalem"]
[Date "2017.08.15"]
[Round "7"]
[White "Sassoon, Roei"]
[Black "Gov, Guy"]
[Result "1-0"]
[ECO "C10"]
[WhiteElo "1779"]
[BlackElo "1724"]
[Annotator "NA RC"]
[PlyCount "46"]
[EventDate "2017.??.??"]
[EventType "swiss"]
[EventCountry "ISR"]
[SourceTitle "playchess.com"]
[Source "ChessBase"]
[SourceQuality "1"]
[TimeControl "40/5400+30:1800+30"]

1. e4 e6 2. d4 d5 3. Nd2 dxe4 4. Nxe4 Bd7 5. Nf3 Bc6 6. Bd3 Nd7 7. O-O Ngf6 8. Re1 Be7 9. c4 Nxe4 10. Bxe4 Bxe4 11. Rxe4 O-O 12. Bf4 c6 13. Qb3 Qc8 14. Rc1 Bf6 15. d5 Nc5 16. Qc2 Nxe4 17. Qxe4 exd5 18. cxd5 cxd5 19. Qxd5 Qg4 20. Bd6 Qd7 21. Rc7 Rac8 22. Rc5 Rxc5 23. Qxc5 Rd8 1-0

[Event "Israel Team Ch Under 18"]
[Site "Jerusalem"]
[Date "2017.08.15"]
[Round "7"]
[White "Vaknin, Asaf"]
[Black "Solomon, Asif"]
[Result "0-1"]
[ECO "A45"]
[WhiteElo "1746"]
[BlackElo "2041"]
[Annotator "NA RC"]
[PlyCount "78"]
[EventDate "2017.??.??"]
[EventType "swiss"]
[EventCountry "ISR"]
[SourceTitle "playchess.com"]
[Source "ChessBase"]
[SourceQuality "1"]
[TimeControl "40/5400+30:1800+30"]

{[%evp 8,65,6,8,0,0,6,10,9,4,12,11,32767,32767,32767,32767,32767,-212,-252,-307,-331,-322,-331,-325,-297,-336,-330,32767,32767,32767,32767,32767,-305,-326,-316,-332,-315,-644,-633,-681,-698,-1963,-837,32767,32767,32767,32767,32767,32767,32767,32767,32767,32767,32767,32767,32767,32767,32767,32767,-5219]} 1. d4 {[%emt 0:40:12]} Nf6 {[%emt 0:40:54]} 2. Bg5 {[%emt 0:00:28]} g6 {[%emt 0:00:51]} 3. Bxf6 {[%emt 0:00:32]} exf6 {[%emt 0:00:29]} 4. g3 {[%emt 0:01:14]} Bg7 {[%emt 0:01:06]} 5. Bg2 {[%emt 0:00:36]} d5 {[%emt 0:01:23]} 6. e3 {[%emt 0:01:17]} O-O {[%emt 0:01:01]} 7. Ne2 {[%emt 0:00:56] A45: Trompowsky Attack} Bg4 {[%emt 0:06:04] [#]} (7... c6 8. O-O Nd7 9. Nd2 f5 10. c4 Nf6 11. Nf4 Re8 12. Rc1 Be6 13. cxd5 Nxd5 14. Nxe6 Rxe6 {½-½ (38) Harika,D (2507)-Dzagnidze,N (2550) Khanty-Mansiysk 2014}) 8. c4 $1 {[%emt 0:03:04] LiveBook: 4 Games} dxc4 {[%emt 0:05:40]} 9. Bxb7 {[%emt 0:01:33]} Nd7 {[%emt 0:00:27]} 10. Bxa8 $146 {[%emt 0:04:23]} ({Predecessor:} 10. Bc6 Rb8 11. h3 Be6 12. Bg2 Nb6 13. Nbc3 f5 14. Nf4 Qe7 {0-1 (31) Cengija,V (2251)-Agoston,A (2086) Senta 2012}) 10... Qxa8 {[%emt 0:00:25]} 11. Rg1 {[%emt 0:00:30]} c5 {[%emt 0:02:20]} 12. Nd2 {[%emt 0:06:43]} (12. Nbc3 $17) 12... cxd4 {[%emt 0:01:10]} 13. exd4 {[%emt 0:00:33]} (13. h3 {was called for.} dxe3 14. hxg4 exd2+ 15. Qxd2) 13... Re8 {[%emt 0:02:58]} 14. f3 {[%emt 0:00:55]} Bxf3 {[%emt 0:01:31]} 15. Nxf3 {[%emt 0:00:23]} Qxf3 {[%emt 0:00:24]} 16. Rc1 {[%emt 0:04:27]} Nb6 {[%emt 0:07:07]} 17. Rc3 {[%emt 0:04:37]} Qe4 {[%emt 0:00:40]} 18. Qc2 {[%emt 0:01:35]} Qxd4 {[%emt 0:00:49]} 19. Kf1 {[%emt 0:01:03]} Qg4 {[%emt 0:03:37]} 20. Nf4 {[%emt 0:04:11]} g5 {[%emt 0:00:42]} 21. h3 {[%emt 0:01:15]} Qd7 {[%emt 0:02:24]} 22. h4 $2 {[%emt 0:02:30]} (22. Ng2 Qxh3 23. Qd1) 22... gxf4 {[%emt 0:01:46]} 23. gxf4 {[%emt 0:00:27]} Nd5 {[%emt 0:02:27]} 24. h5 {[%emt 0:07:43]} h6 {[%emt 0:03:58]} 25. Qg2 {[%emt 0:05:56]} Ne3+ {[%emt 0:00:30]} 26. Rxe3 {[%emt 0:00:28]} Qd1+ {[%emt 0:00:25]} 27. Kf2 {[%emt 0:00:35]} Qd2+ {[%emt 0:00:29]} 28. Kg3 {[%emt 0:01:01]} Qxe3+ {[%emt 0:01:20]} 29. Kh4 {[%emt 0:01:08]} Qxf4+ {[%emt 0:00:29]} 30. Qg4 {[%emt 0:00:26]} Qg5+ {[%emt 0:01:08]} 31. Qxg5 {[%emt 0:00:36]} fxg5+ {[%emt 0:00:24]} 32. Kg4 {[%emt 0:00:25]} Re4+ {[%emt 0:00:42]} 33. Kh3 $19 {[%emt 0:01:01]} f5 {[%emt 0:01:42]} 34. Rd1 {[%emt 0:00:31]} Bd4 {[%emt 0:00:27]} 35. Rf1 Re3+ {[%emt 0:02:00]} 36. Kg2 {[%emt 0:01:06]} f4 {[%emt 0:00:30]} 37. Rd1 {[%emt 0:00:30]} f3+ {[%emt 0:01:00]} 38. Kf1 {[%emt 0:00:24]} Rd3 {[%emt 0:00:35]} 39. Rc1 {[%emt 0:00:25]} g4 {[%emt 0:00:41]} 0-1

[Event "Israel Team Ch Under 18"]
[Site "Jerusalem"]
[Date "2017.08.15"]
[Round "7"]
[White "Kotler, Yiftah"]
[Black "Kereth, Oren"]
[Result "1-0"]
[ECO "C50"]
[WhiteElo "1722"]
[BlackElo "1989"]
[Annotator "NA RC"]
[PlyCount "54"]
[EventDate "2017.??.??"]
[EventType "swiss"]
[EventCountry "ISR"]
[SourceTitle "playchess.com"]
[Source "ChessBase"]
[SourceQuality "1"]
[TimeControl "40/5400+30:1800+30"]

1. e4 {[%emt 0:40:12]} e5 {[%emt 0:40:48]} 2. Nf3 {[%emt 0:00:23]} Nc6 {[%emt 0:00:24]} 3. Bc4 {[%emt 0:00:26]} Bc5 {[%emt 0:00:25]} 4. O-O {[%emt 0:00:25]} Nf6 {[%emt 0:00:38]} 5. d4 {[%emt 0:00:24]} Bxd4 {[%emt 0:01:48]} 6. Nxd4 {[%emt 0:00:26]} Nxd4 {[%emt 0:02:21]} 7. Bg5 {[%emt 0:00:29]} d6 {[%emt 0:01:59]} 8. f4 {[%emt 0:00:31]} Ne6 {[%emt 0:02:27]} 9. Bxe6 {[%emt 0:03:16]} Bxe6 {[%emt 0:00:28]} 10. fxe5 {[%emt 0:01:07]} dxe5 {[%emt 0:00:43]} 11. Qxd8+ {[%emt 0:01:39]} Rxd8 {[%emt 0:00:27]} 12. Bxf6 {[%emt 0:00:29]} gxf6 {[%emt 0:00:24]} 13. Rxf6 {[%emt 0:00:51]} Ke7 {[%emt 0:01:28]} 14. Rf1 $1 $11 {[%emt 0:01:41] keeps the balance.} Bc4 {[%emt 0:03:00]} 15. Re1 {[%emt 0:01:56]} Be6 {[%emt 0:04:40]} (15... Rhg8 $15) 16. Na3 {[%emt 0:13:24]} a6 {[%emt 0:01:26]} 17. Rad1 {[%emt 0:04:30]} f6 {[%emt 0:02:16]} ({But not} 17... Bxa2 $6 18. b3 $14) 18. b3 {[%emt 0:02:12]} Rhg8 {[%emt 0:00:30]} (18... Bh3 $2 {[%emt 0:01:01][%mdl 8192]}) (18... b5 $15) 19. c4 $17 {[%emt 0:00:30]} Bh3 {[%emt 0:01:01]} 20. g3 {[%emt 0:00:30]} Bg4 {[%emt 0:00:30]} 21. Rxd8 {[%emt 0:00:30]} Rxd8 {[%emt 0:00:30]} 22. Nb1 {[%emt 0:00:30]} Kd6 {[%emt 0:00:30]} 23. Kf2 {[%emt 0:00:30]} Kc5 {[%emt 0:00:30]} 24. Ke3 {[%emt 0:00:30]} Kb4 {[%emt 0:00:30]} 25. Rc1 {[%emt 0:00:30]} Rd1 {[%emt 0:00:30]} 26. Rxd1 {[%emt 0:00:30]} Bxd1 {[%emt 0:00:30]} 27. Kd2 {[%emt 0:00:30]} Bg4 {[%emt 0:05:57]} 1-0

[Event "Israel Team Ch Under 18"]
[Site "Jerusalem"]
[Date "2017.08.15"]
[Round "7"]
[White "Shik Buchbinder, Maks"]
[Black "Tsirilman, Guy"]
[Result "0-1"]
[ECO "B12"]
[WhiteElo "1718"]
[BlackElo "1420"]
[Annotator "NA RC"]
[PlyCount "174"]
[EventDate "2017.??.??"]
[EventType "swiss"]
[EventCountry "ISR"]
[SourceTitle "playchess.com"]
[Source "ChessBase"]
[SourceQuality "1"]
[TimeControl "40/5400+30:1800+30"]

1. e4 c6 2. d4 d5 3. e5 Bf5 4. h4 h6 5. g4 Bh7 6. Bd3 Bxd3 7. Qxd3 e6 8. f4 Ne7 9. Nc3 Nd7 10. Bd2 Qc7 11. O-O-O O-O-O 12. Nge2 h5 13. g5 g6 14. Ng3 Nb6 15. Nb1 Nc4 16. Bc3 Kb8 17. Nd2 Nxd2 18. Qxd2 Qd7 19. Bb4 Nc8 20. Ne2 Nb6 21. Bxf8 Rhxf8 22. b3 Rc8 23. Qb4 Qc7 24. a4 Nd7 25. Kb1 c5 26. dxc5 Nxc5 27. Nd4 Ne4 28. Rde1 Rfd8 29. Rh2 a6 30. Rc1 Rd7 31. c4 dxc4 32. Nxe6 fxe6 33. Rxc4 Rd4 34. Rhc2 Rxc4 35. Rxc4 Nc5 36. Qc3 Qd7 37. Qc2 b6 38. b4 Nb7 39. Rxc8+ Qxc8 40. Qxg6 Qc4 41. Qe8+ Ka7 42. g6 Qxb4+ 43. Kc2 Qe4+ 44. Kd1 Qd4+ 45. Ke2 Qxf4 46. Qxe6 Qh2+ 47. Kf3 Qh1+ 48. Kg3 Qe1+ 49. Kf3 Qxh4 50. Qf6 Qg4+ 51. Ke3 Qg3+ 52. Ke2 h4 53. g7 h3 54. Qf8 h2 55. g8=Q Qxg8 56. Qxg8 h1=Q 57. e6 Qe4+ 58. Kf2 Qf5+ 59. Ke2 Qe5+ 60. Kf2 Qf5+ 61. Ke2 Qe4+ 62. Kf2 Qxa4 63. Qf7 Qa2+ 64. Ke3 Qb3+ 65. Ke2 a5 66. Qd7 Qc4+ 67. Ke1 Qb4+ 68. Ke2 Qb2+ 69. Ke1 Qe5+ 70. Kd2 Qd6+ 71. Qxd6 Nxd6 72. e7 Kb7 73. Kd3 Kc6 74. Kc3 b5 75. Kb2 Ne8 76. Kc3 Kc5 77. Kb3 a4+ 78. Ka3 Kc4 79. Kb2 b4 80. Kc2 a3 81. Kb1 Kc3 82. Ka2 Kc2 83. Ka1 a2 84. Kxa2 b3+ 85. Ka1 b2+ 86. Ka2 b1=Q+ 87. Ka3 Qb3# 0-1